bitfinex-derivatives/quotes_SOLF0:USTF0_20250216
["timestamp","ask_amount","ask_price","bid_price","bid_amount"]
[1739674213404,9.20509662,193.79,193.7,9.20509662]
[1739674213599,9.20509662,193.79,193.72,9.20509662]
[1739674214503,0.03708096,193.77,193.74,0.03809059]
[1739674215199,0.03708096,193.77,193.74,9.24318721]
[1739674215399,0.03708096,193.77,193.76,5.1602]
[1739674215601,0.03708096,193.77,193.76,14.36529662]
[1739674215905,8.096e-05,193.77,193.76,14.36529662]
[1739674218001,8.096e-05,193.77,193.76,5.1602]
[1739674227907,9.20517758,193.77,193.74,0.03809059]
[1739674228108,9.20509662,193.75,193.74,0.03809059]
[1739674228303,9.20517758,193.77,193.74,0.03809059]
[1739674232512,9.20517758,193.77,193.74,5.19879059]
[1739674233109,8.096e-05,193.77,193.76,5.1602]
[1739674233311,8.096e-05,193.77,193.74,0.03809059]
[1739674233908,8.096e-05,193.77,193.75,5.1603]
[1739674234116,8.096e-05,193.77,193.74,0.03809059]
[1739674235108,8.096e-05,193.77,193.75,5.1605]
[1739674236414,8.096e-05,193.77,193.74,0.03809059]
[1739674236615,9.20517758,193.77,193.74,5.19879059]
[1739674236913,9.20517758,193.77,193.74,0.03809059]
[1739674237715,5.1603,193.76,193.74,0.03809059]
[1739674238416,14.36559662,193.75,193.74,0.03809059]
[1739674239112,14.36517758,193.77,193.74,0.03809059]
[1739674239627,9.20517758,193.77,193.74,0.03809059]
[1739674241817,14.36517758,193.77,193.74,0.03809059]
[1739674244019,8.096e-05,193.77,193.74,9.24318721]
[1739674244221,8.096e-05,193.77,193.76,5.1602]
[1739674246926,8.096e-05,193.77,193.74,0.03809059]
[1739674248125,8.096e-05,193.77,193.74,5.19859059]
[1739674248324,8.096e-05,193.77,193.74,0.03809059]
[1739674249417,8.096e-05,193.77,193.74,5.19879059]
[1739674251325,8.096e-05,193.77,193.74,0.03809059]
[1739674252730,8.096e-05,193.77,193.74,5.19879059]
[1739674253625,8.096e-05,193.77,193.74,0.03809059]
[1739674254832,9.20517758,193.77,193.74,0.03809059]
[1739674255231,5.1603,193.76,193.74,0.03809059]
[1739674255525,9.20509662,193.75,193.55,177.82667721]
[1739674255727,9.20509662,193.65,193.61,7.11306708]
[1739674256826,9.24400704,193.65,193.61,7.14934296]
[1739674257032,9.24400704,193.65,193.63,5.1637]
[1739674257235,9.24400704,193.65,193.61,7.14934296]
[1739674258134,9.20509662,193.63,193.6,21.33920126]
[1739674258335,9.20509662,193.6,193.58,40.61155444]
[1739674260034,0.03579149,193.61,193.58,40.61155444]
[1739674260633,0.03579149,193.61,193.55,5.1658]
[1739674260835,0.03579149,193.61,193.54,9.20509662]
[1739674262032,0.03579149,193.61,193.56,5.1655]
[1739674262632,0.03579149,193.61,193.54,14.37089662]
[1739674262934,0.03579149,193.61,193.54,9.20509662]
[1739674263336,0.03579149,193.61,193.56,5.1655]
[1739674263531,9.20509662,193.6,193.54,9.20509662]
[1739674263932,9.20509662,193.6,193.52,9.20509662]
[1739674264331,0.03378511,193.58,193.52,9.20509662]
[1739674265732,9.23888173,193.58,193.52,14.37169662]
[1739674265940,9.23888173,193.58,193.52,9.20509662]
[1739674266138,9.23888173,193.58,193.52,14.37159662]
[1739674266839,0.03378511,193.58,193.54,9.20509662]
[1739674267043,0.03378511,193.58,193.56,9.20509662]
[1739674267445,0.03378511,193.58,193.56,14.37039662]
[1739674267844,0.03378511,193.58,193.56,9.20509662]
[1739674269747,0.03378511,193.58,193.56,14.37039662]
[1739674270945,0.03378511,193.58,193.56,9.20509662]
[1739674271746,0.03378511,193.58,193.56,14.37059662]
[1739674272147,0.03378511,193.58,193.56,9.20509662]
[1739674272347,0.03378511,193.58,193.57,5.1653]
[1739674273048,0.03378511,193.58,193.54,9.20509662]
[1739674273250,0.03378511,193.58,193.56,9.20509662]
[1739674273546,0.03378511,193.58,193.56,14.37059662]
[1739674273849,0.03378511,193.58,193.56,9.20509662]
[1739674274050,0.03378511,193.58,193.56,14.37059662]
[1739674274246,0.03378511,193.58,193.56,9.20509662]
[1739674274849,0.03378511,193.58,193.57,5.1653]
[1739674279658,0.03378511,193.58,193.56,9.20509662]
[1739674279949,193.0,193.68,193.56,9.20509662]
[1739674280148,193.0,193.68,193.64,9.20509662]
[1739674280350,198.1624,193.68,193.64,9.20509662]
[1739674280555,193.0,193.68,193.64,9.20509662]
[1739674281150,193.03352001,193.68,193.64,9.23960585]
[1739674282158,193.03352001,193.68,193.66,14.36799662]
[1739674283246,0.03352001,193.68,193.66,9.20509662]
[1739674283451,0.03352001,193.68,193.67,5.1626]
[1739674287556,1.6651,193.78,193.71,5.1614]
[1739674287761,9.20509662,193.76,193.7,9.20509662]
[1739674288656,1.6651,193.78,193.72,9.20509662]
[1739674289155,0.03899766,193.77,193.73,0.0383177]
[1739674289455,0.03899766,193.77,193.74,9.20509662]
[1739674289662,0.03899766,193.77,193.74,14.36559662]
[1739674289960,0.03899766,193.77,193.74,9.20509662]
[1739674290559,0.03899766,193.77,193.73,0.0383177]
[1739674291157,9.20509662,193.76,193.73,0.0383177]
[1739674291560,9.20509662,193.76,193.73,5.1993177]
[1739674291956,9.20509662,193.76,193.73,0.0383177]
[1739674293262,9.20509662,193.74,193.66,5.1626]
[1739674293457,9.20509662,193.67,193.66,5.1626]
[1739674293658,9.20509662,193.67,193.61,9.20509662]
[1739674294459,0.03848664,193.66,193.62,0.02971154]
[1739674294859,0.03848664,193.66,193.64,5.1634]
[1739674295864,0.03848664,193.66,193.62,5.19341154]
[1739674296358,0.03848664,193.66,193.62,0.02971154]
[1739674297463,5.1632,193.65,193.62,0.02971154]
[1739674297866,0.03848664,193.66,193.62,0.02971154]
[1739674298265,5.1632,193.65,193.62,0.02971154]
[1739674298765,5.20138664,193.66,193.62,0.02971154]
[1739674299863,0.03848664,193.66,193.62,0.02971154]
[1739674303468,0.03848664,193.66,193.65,5.1631]
[1739674308570,0.03848664,193.66,193.63,5.1636]
[1739674308874,0.03848664,193.66,193.62,0.02971154]
[1739674310278,0.03848664,193.66,193.62,5.19361154]
[1739674310477,0.03848664,193.66,193.62,0.02971154]
[1739674311180,5.20138664,193.66,193.62,0.02971154]
[1739674311478,0.03848664,193.66,193.62,0.02971154]
[1739674311682,5.20138664,193.66,193.62,0.02971154]
[1739674312479,0.03848664,193.66,193.62,0.02971154]
[1739674312786,1.5948,193.65,193.62,0.02971154]
[1739674312975,5.1637,193.63,193.62,0.02971154]
[1739674313784,5.1641,193.62,193.57,5.165]
[1739674314985,5.20261679,193.61,193.56,5.1655]
[1739674315385,5.20261679,193.61,193.54,14.40367622]
[1739674315586,5.20261679,193.61,193.57,5.1653]
[1739674315987,0.03821679,193.61,193.57,5.1653]
[1739674317484,0.03821679,193.61,193.54,14.40367622]
[1739674318686,0.03821679,193.61,193.58,5.165]
[1739674318893,0.03821679,193.61,193.54,14.40367622]
[1739674319391,0.03821679,193.61,193.58,5.1649]
[1739674320085,0.03821679,193.61,193.54,14.40367622]
[1739674320892,0.03821679,193.61,193.56,5.1655]
[1739674321288,0.03821679,193.61,193.57,5.1652]
[1739674322088,0.03821679,193.61,193.56,5.1655]
[1739674322691,0.03821679,193.61,193.54,14.40367622]
[1739674322992,0.03821679,193.61,193.57,14.40367622]
[1739674323589,0.03821679,193.61,193.58,9.22146228]
[1739674324086,0.03821679,193.61,193.56,9.22146228]
[1739674324894,9.25967907,193.61,193.54,14.38746228]
[1739674325091,9.25967907,193.61,193.54,9.22146228]
[1739674326094,14.42407907,193.61,193.55,5.1657]
[1739674326694,0.03821679,193.61,193.56,9.22146228]
[1739674327298,0.03821679,193.61,193.58,5.1649]
[1739674330798,5.1646,193.6,193.56,5.1655]
[1739674330999,9.25967907,193.61,193.54,9.22146228]
[1739674331500,9.25967907,193.61,193.57,5.1652]
[1739674331700,9.25967907,193.61,193.54,9.22146228]
[1739674332598,14.42417907,193.61,193.55,5.1656]
[1739674332998,9.25967907,193.61,193.55,5.1656]
[1739674333496,9.25967907,193.61,193.54,9.22146228]
[1739674333699,9.22146228,193.59,193.52,9.22146228]
[1739674333998,9.25967907,193.61,193.54,9.22146228]
[1739674334200,9.22146228,193.61,193.54,9.22146228]
[1739674334400,5.20131423,193.59,193.54,14.38736228]
[1739674335300,0.03641423,193.59,193.54,9.22146228]
[1739674335497,5.165,193.58,193.54,9.22146228]
[1739674335692,9.22146228,193.57,193.5,9.22146228]
[1739674335897,5.1658,193.55,193.5,14.38856228]
[1739674336301,0.03688271,193.54,193.5,14.38856228]
[1739674337902,0.03688271,193.54,193.51,5.1667]
[1739674339103,0.03688271,193.54,193.5,14.38846228]
[1739674339401,0.03688271,193.54,193.5,9.22146228]
[1739674339801,0.03688271,193.54,193.52,9.22146228]
[1739674341206,0.03688271,193.54,193.53,5.1663]
[1739674344598,9.22146228,193.63,193.52,9.22146228]
[1739674344905,9.22146228,193.63,193.56,9.22146228]
[1739674345807,0.03524952,193.61,193.58,0.03688271]
[1739674346004,0.03524952,193.61,193.6,5.1645]
[1739674348904,0.03524952,193.61,193.58,0.03688271]
[1739674349510,0.03524952,193.61,193.59,5.1645]
[1739674349811,0.03524952,193.61,193.58,0.03688271]
[1739674350115,0.03524952,193.61,193.58,5.20188271]
[1739674352212,0.03524952,193.61,193.58,0.03688271]
[1739674353013,0.03524952,193.61,193.58,5.20188271]
[1739674357515,0.03524952,193.61,193.6,5.1645]
[1739674358820,9.2567118,193.61,193.58,5.20168271]
[1739674359014,9.2567118,193.61,193.58,0.03688271]
[1739674359217,0.03524952,193.61,193.58,0.03688271]
[1739674359914,0.03524952,193.61,193.58,5.20188271]
[1739674361924,0.03524952,193.61,193.59,5.1646]
[1739674362221,0.03524952,193.61,193.58,9.25834499]
[1739674362614,0.03524952,193.61,193.6,5.1645]
[1739674367223,0.03524952,193.61,193.58,9.25834499]
[1739674367420,0.03524952,193.61,193.59,5.1647]
[1739674367820,5.19954952,193.61,193.58,0.03688271]
[1739674368322,0.03524952,193.61,193.58,0.03688271]
[1739674370725,9.2567118,193.61,193.58,0.03688271]
[1739674371225,14.38616228,193.59,193.58,0.03688271]
[1739674373121,9.22146228,193.59,193.58,0.03688271]
[1739674374721,9.2567118,193.61,193.58,0.03688271]
[1739674374927,0.03524952,193.61,193.58,0.03688271]
[1739674375725,0.03524952,193.61,193.58,5.20188271]
[1739674376927,0.03524952,193.61,193.6,5.1645]
[1739674378831,0.03524952,193.61,193.58,9.25834499]
[1739674379428,0.03524952,193.61,193.6,5.1645]
[1739674381927,0.03524952,193.61,193.6,14.38596228]
[1739674383223,0.03524952,193.61,193.6,5.1645]
[1739674385026,0.03524952,193.61,193.58,9.25834499]
[1739674385831,0.03524952,193.61,193.59,5.1647]
[1739674386624,0.03524952,193.61,193.58,9.25834499]
[1739674386828,0.03524952,193.61,193.58,0.03688271]
[1739674387125,9.2567118,193.61,193.58,0.03688271]
[1739674387334,5.1645,193.6,193.58,0.03688271]
[1739674388726,5.1647,193.59,193.58,0.03688271]
[1739674389323,14.38616228,193.59,193.58,0.03688271]
[1739674390928,9.22146228,193.59,193.58,0.03688271]
[1739674391130,9.2567118,193.61,193.58,0.03688271]
[1739674391731,14.4212118,193.61,193.58,0.03688271]
[1739674393031,9.2567118,193.61,193.58,0.03688271]
[1739674394539,9.2567118,193.61,193.58,5.20188271]
[1739674394934,9.2567118,193.61,193.58,0.03688271]
[1739674395128,14.4210118,193.61,193.58,0.03688271]
[1739674395435,9.2567118,193.61,193.58,0.03688271]
[1739674395634,5.1647,193.59,193.58,0.03688271]
[1739674396430,14.38616228,193.59,193.58,0.03688271]
[1739674413542,14.38616228,193.59,193.58,8.271e-05]
[1739674431457,9.22146228,193.59,193.46,9.22146228]
[1739674431661,9.22146228,193.54,193.48,9.22146228]
[1739674431959,9.22146228,193.54,193.52,5.1666]
[1739674435363,14.38756228,193.54,193.5,5.1671]
[1739674435872,0.03478046,193.55,193.53,5.1663]
[1739674438660,0.03478046,193.55,193.51,1.6067]
[1739674438863,0.03478046,193.55,193.52,5.1666]
[1739674440072,0.03478046,193.55,193.51,1.6067]
[1739674440471,9.22146228,193.54,193.51,1.6067]
[1739674440772,5.1666,193.52,193.51,1.6067]
[1739674441172,5.1664,193.53,193.51,1.6067]
[1739674446469,9.22146228,193.54,193.51,1.6067]
[1739674446670,14.38756228,193.54,193.51,1.6067]
[1739674447676,9.22146228,193.54,193.51,1.6067]
[1739674447874,5.1663,193.53,193.51,1.6067]
[1739674453076,5.1675,193.49,193.45,6.6975]
[1739674453378,5.1675,193.49,193.44,9.22146228]
[1739674453379,9.22146228,193.48,193.4,9.22146228]
[1739674453578,9.22146228,193.46,193.4,9.22146228]
[1739674453779,9.26010697,193.46,193.43,5.1688]
[1739674454175,9.26010697,193.46,193.4,9.22146228]
[1739674454372,9.26010697,193.46,193.42,5.1691]
[1739674454580,9.26010697,193.46,193.4,9.22146228]
[1739674454981,14.42830697,193.46,193.4,14.39126228]
[1739674455781,9.26010697,193.46,193.4,14.39126228]
[1739674456182,9.26010697,193.46,193.41,5.1693]
[1739674456481,9.22146228,193.44,193.38,9.22146228]
[1739674457173,9.22146228,193.44,193.39,5.1698]
[1739674457377,9.22146228,193.44,193.38,9.22146228]
[1739674457683,9.22146228,193.44,193.4,5.1698]
[1739674458780,9.22146228,193.44,193.39,5.17]
[1739674459183,9.22146228,193.44,193.38,9.22146228]
[1739674460084,9.22146228,193.44,193.41,5.1695]
[1739674461880,9.22146228,193.44,193.42,5.1693]
[1739674463086,9.22146228,193.44,193.43,5.169]
[1739674463285,0.03864469,193.46,193.4,9.22146228]
[1739674463286,9.26010697,193.46,193.4,9.22146228]
[1739674463486,9.22146228,193.46,193.4,9.22146228]
[1739674463687,0.03615728,193.45,193.44,5.1687]
[1739674470187,9.22146228,193.5,193.44,9.22146228]
[1739674470390,9.22146228,193.52,193.47,5.1677]
[1739674471288,14.38816228,193.52,193.47,5.1677]
[1739674471487,0.03650333,193.51,193.48,0.03686372]
[1739674472987,9.22146228,193.5,193.48,0.03686372]
[1739674474096,5.1674,193.49,193.48,0.03686372]
[1739674477600,5.1687,193.45,193.38,9.22146228]
[1739674477795,14.39016228,193.45,193.38,9.22146228]
[1739674478190,14.39016228,193.45,193.39,5.17]
[1739674478701,0.0338457,193.44,193.4,9.22146228]
[1739674478900,0.0338457,193.44,193.41,5.1694]
[1739674479902,0.0338457,193.44,193.4,9.22146228]
[1739674480101,0.0338457,193.44,193.42,5.1692]
[1739674481299,0.0338457,193.44,193.4,9.22146228]
[1739674481910,0.0338457,193.44,193.42,5.1692]
[1739674482403,0.0338457,193.44,193.4,9.22146228]
[1739674482603,0.0338457,193.44,193.42,5.1691]
[1739674486206,0.0338457,193.44,193.38,9.22146228]
[1739674486403,0.0338457,193.44,193.41,5.1695]
[1739674488406,0.0338457,193.44,193.4,5.1698]
[1739674488607,0.0338457,193.44,193.38,9.22146228]
[1739674489008,0.0338457,193.44,193.4,5.1696]
[1739674490108,0.0338457,193.44,193.38,9.22146228]
[1739674491406,9.22146228,193.43,193.38,9.22146228]
[1739674491804,9.22146228,193.43,193.39,5.1699]
[1739674492408,0.0338457,193.44,193.41,5.1695]
[1739674495313,9.22146228,193.43,193.36,9.22146228]
[1739674495506,9.22146228,193.39,193.32,9.22146228]
[1739674495809,0.03617986,193.37,193.32,9.22146228]
[1739674496410,0.03617986,193.37,193.33,5.1716]
[1739674496813,0.03617986,193.37,193.32,9.22146228]
[1739674497206,0.03617986,193.37,193.32,14.39336228]
[1739674497708,0.03617986,193.37,193.32,9.22146228]
[1739674498017,0.03617986,193.37,193.36,9.22146228]
[1739674498305,9.22146228,193.43,193.37,5.1704]
[1739674498511,9.22146228,193.43,193.38,9.22146228]
[1739674498709,0.03541165,193.42,193.38,9.22146228]
[1739674500211,0.03541165,193.42,193.38,14.39176228]
[1739674500810,0.03541165,193.42,193.37,5.1706]
[1739674501014,14.39046228,193.43,193.37,5.1706]
[1739674501213,0.03318223,193.41,193.36,9.22146228]
[1739674501417,0.03318223,193.41,193.38,5.1703]
[1739674501717,0.03318223,193.41,193.36,9.22146228]
[1739674502722,0.03318223,193.41,193.37,5.1704]
[1739674502923,9.25464451,193.41,193.34,9.22146228]
[1739674503124,9.22146228,193.41,193.34,9.22146228]
[1739674503317,0.03418825,193.39,193.34,9.22146228]
[1739674503524,14.39186228,193.38,193.3,9.22146228]
[1739674503923,0.03294115,193.36,193.32,5.1718]
[1739674504322,9.25440343,193.36,193.3,9.22146228]
[1739674504523,9.25440343,193.36,193.31,5.1722]
[1739674504722,9.22146228,193.34,193.28,9.22146228]
[1739674504922,9.22146228,193.34,193.3,5.1725]
[1739674505124,9.22146228,193.34,193.28,9.22146228]
[1739674505324,9.25440343,193.36,193.3,9.22146228]
[1739674505524,9.22146228,193.36,193.3,9.22146228]
[1739674505727,0.0394418,193.35,193.32,5.1718]
[1739674508427,0.0394418,193.35,193.33,5.1717]
[1739674508628,0.0394418,193.35,193.32,9.22146228]
[1739674509029,0.0394418,193.35,193.33,5.1717]
[1739674509226,0.0394418,193.35,193.3,9.22146228]
[1739674509728,0.0394418,193.35,193.31,5.172]
[1739674514327,0.0394418,193.35,193.32,5.1719]
[1739674514531,0.0394418,193.35,193.3,9.22146228]
[1739674515028,0.0394418,193.35,193.31,5.1722]
[1739674517327,0.0394418,193.35,193.3,9.22146228]
[1739674518328,0.0394418,193.35,193.32,9.22146228]
[1739674518734,0.0394418,193.35,193.34,5.1714]
[1739674522133,0.0394418,193.35,193.34,14.39286228]
[1739674522641,0.0394418,193.35,193.34,9.22146228]
[1739674523341,0.0394418,193.35,193.34,5.1714]
[1739674523943,0.0394418,193.35,193.32,9.22146228]
[1739674524137,0.0394418,193.35,193.33,5.1716]
[1739674525232,0.0394418,193.35,193.34,5.1714]
[1739674528148,0.0394418,193.35,193.34,14.39286228]
[1739674535252,0.0394418,193.35,193.33,5.1717]
[1739674536351,0.0394418,193.35,193.32,9.22146228]
[1739674537461,0.0394418,193.35,193.31,5.172]
[1739674538458,0.0394418,193.35,193.32,5.1719]
[1739674539549,0.0394418,193.35,193.3,9.22146228]
[1739674539749,0.0394418,193.35,193.32,9.22146228]
[1739674540456,0.0394418,193.35,193.33,5.1717]
[1739674542066,9.26090408,193.35,193.26,9.22146228]
[1739674542259,14.39316228,193.33,193.26,9.22146228]
[1739674542459,9.22146228,193.33,193.26,9.22146228]
[1739674543361,9.22146228,193.33,193.28,5.173]
[1739674545360,9.22146228,193.33,193.29,5.1727]
[1739674549767,14.43210408,193.35,193.29,5.1727]
[1739674551369,9.26090408,193.35,193.29,5.1727]
[1739674551669,5.1715,193.34,193.28,14.39446228]
[1739674553170,5.1715,193.34,193.29,5.1728]
[1739674559288,0.0394418,193.35,193.31,5.1721]
[1739674561583,0.0394418,193.35,193.32,5.1719]
[1739674562686,0.0394418,193.35,193.34,5.1714]
[1739674563688,0.0394418,193.35,193.34,14.39286228]
[1739674565190,0.0394418,193.35,193.32,9.22146228]
[1739674566086,0.0394418,193.35,193.32,14.39336228]
[1739674568588,0.0394418,193.35,193.33,5.1716]
[1739674570695,0.0394418,193.35,193.33,5.1717]
[1739674570896,0.0394418,193.35,193.32,9.22146228]
[1739674571591,0.0394418,193.35,193.33,5.1714]
[1739674571791,0.0394418,193.35,193.32,9.22146228]
[1739674572988,0.0394418,193.35,193.34,14.39286228]
[1739674575897,4.18e-05,193.35,193.34,14.39286228]
[1739674582395,1.5379,193.46,193.41,5.1695]
[1739674582601,1.5379,193.46,193.4,9.22146228]
[1739674583400,1.5379,193.46,193.42,5.1692]
[1739674583599,0.03799529,193.45,193.42,5.1692]
[1739674583997,0.03799529,193.45,193.43,5.1688]
[1739674584997,0.03799529,193.45,193.42,9.22146228]
[1739674585199,0.03799529,193.45,193.44,5.1687]
[1739674591700,0.03799529,193.45,193.42,9.22146228]
[1739674591904,9.25945757,193.45,193.43,5.169]
[1739674592806,9.25945757,193.45,193.42,5.1692]
[1739674596806,9.22146228,193.43,193.41,0.0337565]
[1739674598110,5.1693,193.42,193.41,0.0337565]
[1739674609009,9.22146228,193.43,193.41,0.0337565]
[1739674609209,14.39046228,193.43,193.41,0.0337565]
[1739674610512,9.22146228,193.43,193.41,0.0337565]
[1739674610706,5.1688,193.44,193.41,0.0337565]
[1739674610908,0.03799529,193.45,193.41,0.0337565]
[1739674611819,5.1688,193.44,193.41,0.0337565]
[1739674614618,5.1691,193.43,193.41,0.0337565]
[1739674616319,9.25945757,193.45,193.41,0.0337565]
[1739674616320,5.1688,193.44,193.41,0.0337565]
[1739674616721,9.25945757,193.45,193.41,0.0337565]
[1739674616927,5.169,193.44,193.41,0.0337565]
[1739674617823,5.20649529,193.45,193.41,0.0337565]
[1739674618423,0.03799529,193.45,193.41,0.0337565]
[1739674619123,5.1688,193.44,193.41,0.0337565]
[1739674619319,0.03799529,193.45,193.41,0.0337565]
[1739674620526,5.20649529,193.45,193.41,0.0337565]
[1739674621125,5.20649529,193.45,193.41,5.2032565]
[1739674625422,0.03799529,193.45,193.41,5.2032565]
[1739674626116,0.03799529,193.45,193.44,9.22146228]
[1739674626725,0.03799529,193.45,193.44,14.39016228]
[1739674633334,193.0,193.51,193.44,9.22146228]
[1739674633526,38.10905065,193.54,193.49,9.22146228]
[1739674634129,38.10905065,193.54,193.5,5.1669]
[1739674634331,38.10905065,193.54,193.49,9.22146228]
[1739674634531,5.1664,193.53,193.5,0.03893636]
[1739674635231,43.30901773,193.54,193.5,0.03893636]
[1739674635432,9.22146228,193.53,193.5,0.03893636]
[1739674635835,5.1666,193.52,193.5,0.03893636]
[1739674636431,0.03386708,193.54,193.5,9.26039864]
[1739674636725,0.03386708,193.54,193.52,9.22146228]
[1739674642733,5.20016708,193.54,193.5,0.03893636]
[1739674642934,9.22146228,193.53,193.5,0.03893636]
[1739674644239,5.1668,193.52,193.5,0.03893636]
[1739674644940,5.20016708,193.54,193.5,0.03893636]
[1739674645340,0.03386708,193.54,193.5,0.03893636]
[1739674646239,5.1664,193.53,193.5,0.03893636]
[1739674647835,5.19996708,193.54,193.5,0.03893636]
[1739674648036,0.03386708,193.54,193.5,5.20603636]
[1739674652042,5.20016708,193.54,193.5,5.20603636]
[1739674652448,0.03386708,193.54,193.5,0.03893636]
[1739674652649,0.03386708,193.54,193.51,5.1668]
[1739674654050,0.03386708,193.54,193.52,5.1665]
[1739674655147,0.03386708,193.54,193.5,9.26039864]
[1739674657153,0.03386708,193.54,193.52,5.1666]
[1739674657550,0.03386708,193.54,193.53,5.1663]
[1739674671265,0.03386708,193.54,193.52,14.38796228]
[1739674673866,0.03386708,193.54,193.52,9.22146228]
[1739674674069,0.03386708,193.54,193.53,5.1663]
[1739674675361,0.03386708,193.54,193.5,14.42749864]
[1739674675560,0.03386708,193.54,193.5,0.03893636]
[1739674676262,5.1666,193.53,193.5,0.03893636]
[1739674676569,0.03386708,193.54,193.5,0.03893636]
[1739674676769,5.1669,193.51,193.5,0.03893636]
[1739674680767,5.1666,193.52,193.5,0.03893636]
[1739674682271,0.03386708,193.54,193.5,0.03893636]
[1739674682573,0.03386708,193.54,193.5,9.26039864]
[1739674682875,0.03386708,193.54,193.52,9.22146228]
[1739674683871,0.03386708,193.54,193.52,14.38776228]
[1739674684071,0.03386708,193.54,193.52,9.22146228]
[1739674684574,0.03386708,193.54,193.52,14.38806228]
[1739674685373,0.03386708,193.54,193.52,5.1666]
[1739674687467,0.03386708,193.54,193.51,5.1668]
[1739674687671,0.03386708,193.54,193.5,9.26039864]
[1739674688067,0.03386708,193.54,193.51,5.1668]
[1739674689075,0.03386708,193.54,193.5,9.26039864]
[1739674689978,0.03386708,193.54,193.52,5.1664]
[1739674690676,0.03386708,193.54,193.53,5.1663]
[1739674691871,6.708e-05,193.54,193.53,5.1663]
[1739674692068,142.70291976,193.61,193.59,5.1647]
[1739674692279,142.70291976,193.62,193.59,5.1647]
[1739674693178,142.73983505,193.62,193.59,5.19737246]
[1739674693480,0.03691529,193.62,193.59,5.19737246]
[1739674694681,0.03691529,193.62,193.6,5.1643]
[1739674695081,0.03691529,193.62,193.61,9.22146228]
[1739674695280,0.03691529,193.62,193.61,14.38566228]
[1739674698485,0.03691529,193.62,193.61,9.22146228]
[1739674698685,0.03691529,193.62,193.59,14.41863474]
[1739674701384,0.03691529,193.62,193.6,5.1644]
[1739674701884,0.03691529,193.62,193.61,9.22146228]
[1739674703688,0.03691529,193.62,193.59,9.25413474]
[1739674704883,0.03691529,193.62,193.6,5.1644]
[1739674707290,0.03691529,193.62,193.59,9.25413474]
[1739674707490,0.03691529,193.62,193.59,14.41883474]
[1739674709996,0.03691529,193.62,193.6,5.1645]
[1739674711491,0.03691529,193.62,193.61,14.38566228]
[1739674718699,0.03691529,193.62,193.59,14.41873474]
[1739674718999,0.03691529,193.62,193.59,9.25413474]
[1739674720100,0.03691529,193.62,193.6,5.1643]
[1739674721801,0.03691529,193.62,193.59,14.41883474]
[1739674725702,0.03691529,193.62,193.59,9.25413474]
[1739674725904,0.03691529,193.62,193.6,5.1644]
[1739674728504,0.03691529,193.62,193.59,9.25413474]
[1739674728505,0.03691529,193.62,193.59,14.41883474]
[1739674733508,0.03691529,193.62,193.59,9.25413474]
[1739674733806,0.03691529,193.62,193.6,5.1644]
[1739674736208,0.03691529,193.62,193.59,9.25413474]
[1739674736405,0.03691529,193.62,193.59,14.41883474]
[1739674736605,0.03691529,193.62,193.59,9.25413474]
[1739674736801,5.1643,193.61,193.59,0.03267246]
[1739674741206,0.03691529,193.62,193.59,0.03267246]
[1739674741408,5.20091529,193.62,193.59,0.03267246]
[1739674743406,0.03691529,193.62,193.59,0.03267246]
[1739674743618,0.03691529,193.62,193.59,14.41863474]
[1739674743803,0.03691529,193.62,193.59,9.25413474]
[1739674744007,0.03691529,193.62,193.61,9.22146228]
[1739674746114,0.03691529,193.62,193.61,14.38566228]
[1739674751727,0.03691529,193.62,193.59,9.25413474]
[1739674752917,0.03691529,193.62,193.59,14.41883474]
[1739674753125,5.1645,193.6,193.59,0.03267246]
[1739674754126,0.03691529,193.62,193.59,0.03267246]
[1739674754328,5.1642,193.61,193.59,0.03267246]
[1739674756334,5.20091529,193.62,193.59,0.03267246]
[1739674765439,0.03691529,193.62,193.59,0.03267246]
[1739674765640,0.03691529,193.62,193.59,9.25413474]
[1739674766643,0.03691529,193.62,193.59,14.41863474]
[1739674767838,0.03691529,193.62,193.6,5.1644]
[1739674771245,0.03691529,193.62,193.59,9.25413474]
[1739674771445,0.03691529,193.62,193.61,5.1642]
[1739674771745,0.03691529,193.62,193.59,9.25413474]
[1739674773048,0.03691529,193.62,193.6,5.1644]
[1739674773547,0.03691529,193.62,193.6,5.1645]
[1739674774547,0.03691529,193.62,193.59,9.25413474]
[1739674774748,0.03691529,193.62,193.61,5.1642]
[1739674778757,0.03691529,193.62,193.61,14.38566228]
[1739674784462,0.03691529,193.62,193.59,14.41863474]
[1739674786162,0.03691529,193.62,193.59,9.25413474]
[1739674786363,0.03691529,193.62,193.6,5.1644]
[1739674791561,0.03691529,193.62,193.59,14.41883474]
[1739674795470,0.03691529,193.62,193.59,9.25413474]
[1739674796364,0.03691529,193.62,193.61,5.1642]
[1739674804772,0.03691529,193.62,193.59,9.25413474]
[1739674804976,0.03691529,193.62,193.6,5.1645]
[1739674805271,0.03691529,193.62,193.59,9.25413474]
[1739674805466,0.03691529,193.62,193.61,5.1642]
[1739674806573,0.03691529,193.62,193.61,14.38566228]